[Event "*** Titled Tuesday 3|2 Blitz"]
[Site "Chess.com"]
[Date "2017.06.06"]
[Round "1"]
[White "proxy6"]
[Black "PaulfromSPb"]
[Result "0-1"]
[WhiteElo "2297"]
[BlackElo "2570"]
[TimeControl "180+2"]
[EndTime "13:52:59 PDT"]
[Termination "PaulfromSPb won by resignation"]

1. e4 {[%clk 0:03:02]} 1... c5 {[%clk 0:02:59.3]} 2. Nf3 {[%clk 0:03:03.3]} 2...
a6 {[%clk 0:02:59.6]} 3. d4 {[%clk 0:03:04.8]} 3... cxd4 {[%clk 0:03:00.7]} 4.
Nxd4 {[%clk 0:03:06.6]} 4... Nf6 {[%clk 0:03:01.9]} 5. Nc3 {[%clk 0:03:04.9]}
5... e5 {[%clk 0:03:02.5]} 6. Nf5 {[%clk 0:03:03.3]} 6... d5 {[%clk 0:03:02.4]}
7. Ng3 {[%clk 0:03:01.4]} 7... d4 {[%clk 0:03:01]} 8. Nb1 {[%clk 0:02:57.8]}
8... h6 {[%clk 0:02:55.6]} 9. Bd3 {[%clk 0:02:56.8]} 9... Nc6 {[%clk 0:02:56]}
10. O-O {[%clk 0:02:55.6]} 10... g5 {[%clk 0:02:55.6]} 11. c3 {[%clk 0:02:50.7]}
11... Bd6 {[%clk 0:02:53.8]} 12. Re1 {[%clk 0:02:47.5]} 12... Bg4 {[%clk
0:02:52.7]} 13. Qb3 {[%clk 0:02:39.3]} 13... Qd7 {[%clk 0:02:50.6]} 14. Nd2
{[%clk 0:02:31.4]} 14... O-O {[%clk 0:02:49.9]} 15. Nc4 {[%clk 0:02:27]} 15...
Bc7 {[%clk 0:02:50.3]} 16. f3 {[%clk 0:02:18.8]} 16... Be6 {[%clk 0:02:50.1]}
17. Qc2 {[%clk 0:02:17.4]} 17... b5 {[%clk 0:02:48]} 18. Nd2 {[%clk 0:02:16.8]}
18... Bb6 {[%clk 0:02:48.5]} 19. Kh1 {[%clk 0:02:16.5]} 19... dxc3 {[%clk
0:02:49.3]} 20. bxc3 {[%clk 0:02:09.8]} 20... Rac8 {[%clk 0:02:50.3]} 21. Bb2
{[%clk 0:02:04]} 21... Nb4 {[%clk 0:02:50.4]} 0-1

[Event "*** Titled Tuesday 3|2 Blitz"]
[Site "Chess.com"]
[Date "2017.06.06"]
[Round "1"]
[White "Margency"]
[Black "MFBerna"]
[Result "1-0"]
[WhiteElo "2541"]
[BlackElo "2270"]
[TimeControl "180+2"]
[EndTime "13:53:39 PDT"]
[Termination "Margency won by resignation"]

1. c4 {[%clk 0:03:02]} 1... c6 {[%clk 0:02:59.6]} 2. e4 {[%clk 0:03:02.4]} 2...
d5 {[%clk 0:03:01.5]} 3. exd5 {[%clk 0:03:03.7]} 3... cxd5 {[%clk 0:03:03.4]} 4.
d4 {[%clk 0:03:05.4]} 4... Nf6 {[%clk 0:03:04.1]} 5. Nc3 {[%clk 0:03:06.6]} 5...
Nc6 {[%clk 0:03:04.5]} 6. Bg5 {[%clk 0:03:07.3]} 6... e6 {[%clk 0:03:04.7]} 7.
Nf3 {[%clk 0:03:07.3]} 7... Be7 {[%clk 0:03:04.8]} 8. c5 {[%clk 0:03:08]} 8...
Ne4 {[%clk 0:03:03.1]} 9. Bxe7 {[%clk 0:03:08.5]} 9... Qxe7 {[%clk 0:03:05]} 10.
Rc1 {[%clk 0:03:05.4]} 10... O-O {[%clk 0:03:04.4]} 11. Bd3 {[%clk 0:03:06.2]}
11... f5 {[%clk 0:03:04.5]} 12. O-O {[%clk 0:03:05]} 12... Bd7 {[%clk
0:03:01.6]} 13. Bb5 {[%clk 0:03:05.2]} 13... Rac8 {[%clk 0:02:49.6]} 14. Bxc6
{[%clk 0:03:06.1]} 14... Bxc6 {[%clk 0:02:51.4]} 15. Ne5 {[%clk 0:03:06.9]}
15... f4 {[%clk 0:02:44]} 16. f3 {[%clk 0:03:06.6]} 16... Ng5 {[%clk 0:02:42.3]}
17. Re1 {[%clk 0:03:05.4]} 17... Rf5 {[%clk 0:02:37.8]} 18. Rc2 {[%clk
0:03:05.2]} 18... Rcf8 {[%clk 0:02:20]} 19. Rce2 {[%clk 0:03:05.3]} 19... Be8
{[%clk 0:02:20.6]} 20. b4 {[%clk 0:02:59.5]} 20... R8f6 {[%clk 0:02:20.5]} 21.
Ng4 {[%clk 0:02:56.6]} 21... Rg6 {[%clk 0:02:17.4]} 22. Qd3 {[%clk 0:02:55.7]}
22... Qf7 {[%clk 0:02:06.2]} 23. Ne5 {[%clk 0:02:52.5]} 23... Qf6 {[%clk
0:02:07.1]} 24. Nxg6 {[%clk 0:02:52.1]} 24... Bxg6 {[%clk 0:02:08.7]} 25. h4
{[%clk 0:02:47.6]} 25... Nf7 {[%clk 0:02:08.2]} 26. Rxe6 {[%clk 0:02:48.2]}
26... Re5 {[%clk 0:01:54.4]} 27. Re8+ {[%clk 0:02:48.3]} 1-0

[Event "*** Titled Tuesday 3|2 Blitz"]
[Site "Chess.com"]
[Date "2017.06.06"]
[Round "1"]
[White "heartofatiger"]
[Black "GeorgMeier"]
[Result "0-1"]
[WhiteElo "2385"]
[BlackElo "2787"]
[TimeControl "180+2"]
[EndTime "13:54:22 PDT"]
[Termination "GeorgMeier won by resignation"]

1. d4 {[%clk 0:03:00]} 1... d5 {[%clk 0:03:00.6]} 2. c4 {[%clk 0:03:00.4]} 2...
e6 {[%clk 0:03:01.4]} 3. Nc3 {[%clk 0:03:01]} 3... Nf6 {[%clk 0:03:02.7]} 4.
cxd5 {[%clk 0:03:01.5]} 4... exd5 {[%clk 0:03:04]} 5. Bg5 {[%clk 0:03:02.2]}
5... c6 {[%clk 0:03:05.3]} 6. Qc2 {[%clk 0:03:01.9]} 6... Be7 {[%clk 0:03:02.3]}
7. e3 {[%clk 0:03:02.2]} 7... Nbd7 {[%clk 0:03:03.3]} 8. Bd3 {[%clk 0:03:02.6]}
8... h6 {[%clk 0:03:04.4]} 9. Bf4 {[%clk 0:03:01.8]} 9... Nh5 {[%clk 0:03:05]}
10. Be5 {[%clk 0:02:58.2]} 10... Nxe5 {[%clk 0:02:49.6]} 11. dxe5 {[%clk
0:02:58.8]} 11... O-O {[%clk 0:02:50.7]} 12. h3 {[%clk 0:02:57.9]} 12... g6
{[%clk 0:02:51.2]} 13. g4 {[%clk 0:02:55.5]} 13... Ng7 {[%clk 0:02:52.4]} 14.
O-O-O {[%clk 0:02:53.3]} 14... h5 {[%clk 0:02:47.4]} 15. f3 {[%clk 0:02:51.4]}
15... Qb6 {[%clk 0:02:42]} 16. Qf2 {[%clk 0:02:46.3]} 16... Bc5 {[%clk
0:02:17.3]} 17. Re1 {[%clk 0:02:46.3]} 17... d4 {[%clk 0:02:18.5]} 18. Ne4
{[%clk 0:02:18.9]} 18... dxe3 {[%clk 0:02:19.1]} 19. Nf6+ {[%clk 0:02:19.1]}
19... Kh8 {[%clk 0:02:19.9]} 20. Qh4 {[%clk 0:02:17.1]} 20... Bd4 {[%clk
0:02:19.5]} 21. Rh2 {[%clk 0:02:01.3]} 21... Qc5+ {[%clk 0:02:10.7]} 22. Rc2
{[%clk 0:01:51.3]} 22... Qxe5 {[%clk 0:02:12.1]} 23. f4 {[%clk 0:01:43.4]} 23...
Qxf6 {[%clk 0:02:12.3]} 0-1

[Event "*** Titled Tuesday 3|2 Blitz"]
[Site "Chess.com"]
[Date "2017.06.06"]
[Round "1"]
[White "Boryboy"]
[Black "RD4ever"]
[Result "0-1"]
[WhiteElo "2310"]
[BlackElo "2612"]
[TimeControl "180+2"]
[EndTime "13:54:32 PDT"]
[Termination "RD4ever won by resignation"]

1. e4 {[%clk 0:03:01.6]} 1... e6 {[%clk 0:02:59.2]} 2. d4 {[%clk 0:03:02]} 2...
d5 {[%clk 0:02:59.5]} 3. e5 {[%clk 0:03:03.2]} 3... c5 {[%clk 0:03:00.1]} 4. c3
{[%clk 0:03:04]} 4... Nc6 {[%clk 0:03:01.6]} 5. g3 {[%clk 0:03:03.9]} 5... Nge7
{[%clk 0:02:57.8]} 6. Bh3 {[%clk 0:03:03.7]} 6... Qb6 {[%clk 0:02:51.7]} 7. Ne2
{[%clk 0:03:04.6]} 7... h5 {[%clk 0:02:51.9]} 8. O-O {[%clk 0:03:03.3]} 8... h4
{[%clk 0:02:51.7]} 9. g4 {[%clk 0:03:04.4]} 9... Bd7 {[%clk 0:02:45.5]} 10. Kh1
{[%clk 0:02:58.7]} 10... Rc8 {[%clk 0:02:32.2]} 11. f4 {[%clk 0:02:37.2]} 11...
g6 {[%clk 0:02:33.1]} 12. a4 {[%clk 0:02:31.3]} 12... cxd4 {[%clk 0:02:30.1]}
13. cxd4 {[%clk 0:02:29.7]} 13... Na5 {[%clk 0:02:32]} 14. Be3 {[%clk
0:02:26.5]} 14... Qxb2 {[%clk 0:02:31]} 15. Nd2 {[%clk 0:01:58.3]} 15... Nc4
{[%clk 0:02:30.3]} 16. Nxc4 {[%clk 0:01:55.6]} 16... dxc4 {[%clk 0:02:32.2]} 17.
Rb1 {[%clk 0:01:46]} 17... Qa3 {[%clk 0:02:30.5]} 18. Qc1 {[%clk 0:01:40.9]}
18... Nd5 {[%clk 0:02:28.8]} 19. Qxa3 {[%clk 0:01:31.9]} 19... Bxa3 {[%clk
0:02:30.7]} 20. Bc1 {[%clk 0:01:32]} 20... Bxc1 {[%clk 0:01:59.1]} 21. Rfxc1
{[%clk 0:01:33.9]} 21... Bxa4 {[%clk 0:02:00.3]} 22. Rxb7 {[%clk 0:01:34.7]}
22... Bc6 {[%clk 0:01:59.7]} 0-1

[Event "*** Titled Tuesday 3|2 Blitz"]
[Site "Chess.com"]
[Date "2017.06.06"]
[Round "1"]
[White "northridgehawk"]
[Black "cukus"]
[Result "0-1"]
[WhiteElo "2096"]
[BlackElo "2438"]
[TimeControl "180+2"]
[EndTime "13:55:16 PDT"]
[Termination "cukus won by resignation"]

1. e4 {[%clk 0:03:01.2]} 1... c5 {[%clk 0:02:59.5]} 2. Nf3 {[%clk 0:03:00.5]}
2... d6 {[%clk 0:02:59.3]} 3. d4 {[%clk 0:02:59.8]} 3... cxd4 {[%clk 0:03:01.2]}
4. Nxd4 {[%clk 0:03:01.3]} 4... Nf6 {[%clk 0:02:59.4]} 5. Nc3 {[%clk 0:03:02.3]}
5... a6 {[%clk 0:03:00.5]} 6. h3 {[%clk 0:03:03.2]} 6... e6 {[%clk 0:02:55.3]}
7. g4 {[%clk 0:03:01.7]} 7... Be7 {[%clk 0:02:54.8]} 8. Bg2 {[%clk 0:03:02.7]}
8... Nfd7 {[%clk 0:02:47.8]} 9. Be3 {[%clk 0:03:01.5]} 9... Nc6 {[%clk
0:02:43.4]} 10. Qe2 {[%clk 0:03:01.9]} 10... O-O {[%clk 0:02:39.8]} 11. O-O-O
{[%clk 0:03:02.1]} 11... Nxd4 {[%clk 0:02:37.6]} 12. Bxd4 {[%clk 0:03:02.8]}
12... b5 {[%clk 0:02:36]} 13. f4 {[%clk 0:02:58.8]} 13... Bb7 {[%clk 0:02:29.5]}
14. Kb1 {[%clk 0:02:58.8]} 14... b4 {[%clk 0:02:19.9]} 15. Na4 {[%clk
0:02:59.2]} 15... Bc6 {[%clk 0:02:18.8]} 16. b3 {[%clk 0:02:59.5]} 16... Bxa4
{[%clk 0:02:13.4]} 17. bxa4 {[%clk 0:03:01.4]} 17... Qc7 {[%clk 0:02:10.4]} 18.
g5 {[%clk 0:03:01.8]} 18... e5 {[%clk 0:02:06.4]} 19. Bb2 {[%clk 0:02:54.6]}
19... a5 {[%clk 0:02:02.1]} 20. f5 {[%clk 0:02:55]} 20... Bxg5 {[%clk
0:01:59.2]} 21. Rhg1 {[%clk 0:02:55]} 21... Bf6 {[%clk 0:01:56.6]} 22. Qg4
{[%clk 0:02:51.3]} 22... Nc5 {[%clk 0:01:53.7]} 23. h4 {[%clk 0:02:36.6]} 23...
Nxa4 {[%clk 0:01:54.1]} 24. h5 {[%clk 0:02:36.3]} 24... h6 {[%clk 0:01:47.6]}
25. Bf1 {[%clk 0:02:33.4]} 25... Rfc8 {[%clk 0:01:44]} 26. Bd3 {[%clk
0:02:09.2]} 26... Nxb2 {[%clk 0:01:35.1]} 27. Kxb2 {[%clk 0:02:09.5]} 27... a4
{[%clk 0:01:36.6]} 28. Rb1 {[%clk 0:01:41.7]} 28... Qc3+ {[%clk 0:01:33.6]} 29.
Kc1 {[%clk 0:01:42.5]} 29... Qxd3 {[%clk 0:01:34.6]} 30. Rg2 {[%clk 0:01:43.2]}
30... Bg5+ {[%clk 0:01:24.9]} 0-1

[Event "*** Titled Tuesday 3|2 Blitz"]
[Site "Chess.com"]
[Date "2017.06.06"]
[Round "1"]
[White "Hikaru"]
[Black "ZEN-22"]
[Result "1-0"]
[WhiteElo "2912"]
[BlackElo "2389"]
[TimeControl "180+2"]
[EndTime "13:55:38 PDT"]
[Termination "Hikaru won by checkmate"]

1. b3 {[%clk 0:03:00.3]} 1... c5 {[%clk 0:03:00.3]} 2. Bb2 {[%clk 0:03:01.3]}
2... Nc6 {[%clk 0:03:01.8]} 3. e3 {[%clk 0:03:02.5]} 3... e5 {[%clk 0:03:02.7]}
4. Bb5 {[%clk 0:03:02.7]} 4... Qe7 {[%clk 0:03:00.7]} 5. Ne2 {[%clk 0:02:58.8]}
5... Nf6 {[%clk 0:03:01.2]} 6. O-O {[%clk 0:02:58.8]} 6... a6 {[%clk 0:03:02.4]}
7. Bxc6 {[%clk 0:02:59.5]} 7... bxc6 {[%clk 0:02:59.1]} 8. f4 {[%clk 0:02:55.3]}
8... e4 {[%clk 0:02:59]} 9. Ng3 {[%clk 0:02:52.1]} 9... d6 {[%clk 0:02:58.3]}
10. Bxf6 {[%clk 0:02:50.7]} 10... Qxf6 {[%clk 0:02:57.3]} 11. Nc3 {[%clk
0:02:50.4]} 11... d5 {[%clk 0:02:58.5]} 12. Na4 {[%clk 0:02:51.1]} 12... Rb8
{[%clk 0:02:58.2]} 13. c4 {[%clk 0:02:48.2]} 13... h5 {[%clk 0:02:58]} 14. h3
{[%clk 0:02:46.2]} 14... h4 {[%clk 0:02:58.6]} 15. Ne2 {[%clk 0:02:44.1]} 15...
d4 {[%clk 0:02:57.9]} 16. d3 {[%clk 0:02:43.2]} 16... Bf5 {[%clk 0:02:54.9]} 17.
dxe4 {[%clk 0:02:42]} 17... Bxe4 {[%clk 0:02:55.5]} 18. exd4 {[%clk 0:02:43.9]}
18... Rd8 {[%clk 0:02:56.3]} 19. Nec3 {[%clk 0:02:39.3]} 19... Bf5 {[%clk
0:02:49.1]} 20. d5 {[%clk 0:02:34.8]} 20... Be7 {[%clk 0:02:39.3]} 21. Qf3
{[%clk 0:02:32.7]} 21... O-O {[%clk 0:02:37.2]} 22. Rad1 {[%clk 0:02:32.4]}
22... cxd5 {[%clk 0:02:35.9]} 23. Nxd5 {[%clk 0:02:31.6]} 23... Rxd5 {[%clk
0:02:36.8]} 24. Rxd5 {[%clk 0:02:31.3]} 24... Qg6 {[%clk 0:02:35.6]} 25. Re1
{[%clk 0:02:31.5]} 25... Bf6 {[%clk 0:02:35.5]} 26. Nxc5 {[%clk 0:02:30.9]}
26... a5 {[%clk 0:02:27.7]} 27. Nd7 {[%clk 0:02:28.3]} 27... Bxd7 {[%clk
0:02:25]} 28. Rxd7 {[%clk 0:02:30.2]} 28... Qc2 {[%clk 0:02:26.9]} 29. Re2
{[%clk 0:02:30.2]} 29... Qc1+ {[%clk 0:02:25.9]} 30. Kh2 {[%clk 0:02:29.7]}
30... Qa1 {[%clk 0:02:26.2]} 31. Red2 {[%clk 0:02:29.3]} 31... g6 {[%clk
0:02:21.9]} 32. R7d5 {[%clk 0:02:24]} 32... Kg7 {[%clk 0:02:22.1]} 33. Re2
{[%clk 0:02:21.3]} 33... Bd4 {[%clk 0:02:20.6]} 34. Rxd4 {[%clk 0:02:21.4]}
34... Qxd4 {[%clk 0:02:22.5]} 35. Qe3 {[%clk 0:02:23.3]} 35... Qd8 {[%clk
0:02:20.9]} 36. c5 {[%clk 0:02:22.2]} 36... Qd1 {[%clk 0:02:17.9]} 37. c6 {[%clk
0:02:21.7]} 37... Rc8 {[%clk 0:02:18.9]} 38. Qc3+ {[%clk 0:02:21.7]} 38... Kh7
{[%clk 0:02:15.4]} 39. Re7 {[%clk 0:02:21.3]} 39... Qd5 {[%clk 0:01:53]} 40. Qf6
{[%clk 0:02:20.4]} 40... Rxc6 {[%clk 0:01:52.4]} 41. Rxf7+ {[%clk 0:02:20.1]}
41... Kh6 {[%clk 0:01:53]} 42. Qh8# {[%clk 0:02:20.1]} 1-0

[Event "*** Titled Tuesday 3|2 Blitz"]
[Site "Chess.com"]
[Date "2017.06.06"]
[Round "1"]
[White "TomsKantans"]
[Black "AndrewDGreen"]
[Result "1-0"]
[WhiteElo "2497"]
[BlackElo "2191"]
[TimeControl "180+2"]
[EndTime "13:55:42 PDT"]
[Termination "TomsKantans won by resignation"]

1. e4 {[%clk 0:03:01.9]} 1... Nf6 {[%clk 0:03:00.7]} 2. e5 {[%clk 0:03:02.6]}
2... Nd5 {[%clk 0:03:01.9]} 3. d4 {[%clk 0:03:04.2]} 3... d6 {[%clk 0:03:03.2]}
4. c4 {[%clk 0:03:05.7]} 4... Nb6 {[%clk 0:03:03.9]} 5. exd6 {[%clk 0:03:07.6]}
5... exd6 {[%clk 0:03:05.5]} 6. Nc3 {[%clk 0:03:07.7]} 6... Be7 {[%clk
0:03:06.5]} 7. h3 {[%clk 0:03:08.9]} 7... O-O {[%clk 0:03:05.8]} 8. Nf3 {[%clk
0:03:10]} 8... Bf5 {[%clk 0:03:02.8]} 9. Be2 {[%clk 0:03:10.8]} 9... h6 {[%clk
0:02:56.5]} 10. O-O {[%clk 0:03:11.5]} 10... Bf6 {[%clk 0:02:57.5]} 11. Bf4
{[%clk 0:03:11.8]} 11... Nc6 {[%clk 0:02:50.3]} 12. Re1 {[%clk 0:03:11.1]} 12...
Re8 {[%clk 0:02:44]} 13. Qd2 {[%clk 0:03:10.8]} 13... d5 {[%clk 0:02:41.4]} 14.
c5 {[%clk 0:03:11.7]} 14... Nc8 {[%clk 0:02:40.9]} 15. Bb5 {[%clk 0:03:10.1]}
15... N8e7 {[%clk 0:02:38.3]} 16. Re2 {[%clk 0:03:00.2]} 16... Ng6 {[%clk
0:02:34.2]} 17. Rxe8+ {[%clk 0:02:58.6]} 17... Qxe8 {[%clk 0:02:32.5]} 18. Bxc7
{[%clk 0:02:59.6]} 18... Qd7 {[%clk 0:02:26.5]} 19. Bg3 {[%clk 0:02:58.8]} 19...
a6 {[%clk 0:02:25]} 20. Ba4 {[%clk 0:02:59]} 20... Be4 {[%clk 0:02:25.5]} 21.
Nh2 {[%clk 0:02:47.9]} 21... Bxd4 {[%clk 0:02:18.1]} 22. Qxd4 {[%clk 0:02:27]}
22... Nxd4 {[%clk 0:02:16.5]} 23. Bxd7 {[%clk 0:02:27.6]} 23... Nf5 {[%clk
0:02:12.5]} 24. Bxf5 {[%clk 0:02:26.8]} 24... Bxf5 {[%clk 0:02:12.7]} 25. Nxd5
{[%clk 0:02:28.1]} 25... Rd8 {[%clk 0:02:10.5]} 26. Ne3 {[%clk 0:02:27.3]} 26...
Be4 {[%clk 0:02:09.7]} 27. Bd6 {[%clk 0:02:27.8]} 27... f5 {[%clk 0:02:02.5]}
28. Nf3 {[%clk 0:02:23.4]} 28... f4 {[%clk 0:02:02.1]} 29. Nc4 {[%clk
0:02:21.8]} 29... Bxf3 {[%clk 0:02:01]} 30. gxf3 {[%clk 0:02:22.9]} 30... Kf7
{[%clk 0:01:58.1]} 31. Re1 {[%clk 0:02:22.2]} 31... Kf6 {[%clk 0:01:54]} 32. Kf1
{[%clk 0:02:21.6]} 32... Kf5 {[%clk 0:01:51.9]} 33. b4 {[%clk 0:02:17.4]} 33...
Rd7 {[%clk 0:01:37]} 34. Re4 {[%clk 0:02:17.4]} 34... Rf7 {[%clk 0:01:29.9]} 35.
Ke2 {[%clk 0:02:17.9]} 35... Kg5 {[%clk 0:01:30.8]} 36. a4 {[%clk 0:02:15.9]}
36... h5 {[%clk 0:01:31.6]} 37. b5 {[%clk 0:02:16]} 37... axb5 {[%clk
0:01:31.2]} 38. axb5 {[%clk 0:02:17.9]} 38... Kh4 {[%clk 0:01:31.7]} 39. c6
{[%clk 0:02:08.7]} 39... bxc6 {[%clk 0:01:29.7]} 40. bxc6 {[%clk 0:02:10.6]}
40... Kxh3 {[%clk 0:01:28.6]} 41. c7 {[%clk 0:02:11.6]} 1-0

[Event "*** Titled Tuesday 3|2 Blitz"]
[Site "Chess.com"]
[Date "2017.06.06"]
[Round "1"]
[White "penguingm1"]
[Black "Rock700chess"]
[Result "1-0"]
[WhiteElo "2569"]
[BlackElo "2295"]
[TimeControl "180+2"]
[EndTime "13:55:46 PDT"]
[Termination "penguingm1 won by resignation"]

1. d4 {[%clk 0:03:02]} 1... Nf6 {[%clk 0:02:59.5]} 2. c4 {[%clk 0:03:01.7]} 2...
e6 {[%clk 0:03:00.8]} 3. Nc3 {[%clk 0:03:02.9]} 3... Bb4 {[%clk 0:03:01.9]} 4.
Qc2 {[%clk 0:03:04]} 4... b6 {[%clk 0:03:03.3]} 5. e4 {[%clk 0:03:05]} 5... c5
{[%clk 0:03:04.5]} 6. d5 {[%clk 0:03:06]} 6... Qe7 {[%clk 0:03:05.9]} 7. Ne2
{[%clk 0:03:06.5]} 7... exd5 {[%clk 0:02:57.7]} 8. exd5 {[%clk 0:03:08.4]} 8...
Ne4 {[%clk 0:02:47.6]} 9. Be3 {[%clk 0:03:00]} 9... O-O {[%clk 0:02:46.5]} 10.
O-O-O {[%clk 0:02:50.8]} 10... Nxc3 {[%clk 0:02:41.2]} 11. Nxc3 {[%clk
0:02:52.1]} 11... d6 {[%clk 0:02:38.2]} 12. Bd3 {[%clk 0:02:52.6]} 12... h6
{[%clk 0:02:25.3]} 13. Rhe1 {[%clk 0:02:40.4]} 13... Qf6 {[%clk 0:02:25.7]} 14.
Ne4 {[%clk 0:02:39.2]} 14... Qd8 {[%clk 0:02:11]} 15. Re2 {[%clk 0:02:28.1]}
15... Bf5 {[%clk 0:02:09.5]} 16. Nxc5 {[%clk 0:02:07.6]} 16... Bxc5 {[%clk
0:01:52.8]} 17. Bxf5 {[%clk 0:02:06.7]} 17... Nd7 {[%clk 0:01:54.4]} 18. Kb1
{[%clk 0:01:58.5]} 18... Bxe3 {[%clk 0:01:43.2]} 19. Rxe3 {[%clk 0:01:59.4]}
19... Nc5 {[%clk 0:01:42.8]} 20. Rde1 {[%clk 0:01:56.1]} 20... b5 {[%clk
0:01:27.3]} 21. cxb5 {[%clk 0:01:47]} 21... Rb8 {[%clk 0:01:26.7]} 22. Bd3
{[%clk 0:01:47.4]} 22... Qg5 {[%clk 0:01:19.8]} 23. Rg3 {[%clk 0:01:42.9]} 23...
Qxd5 {[%clk 0:01:20.3]} 24. Bc4 {[%clk 0:01:42.5]} 24... Qd4 {[%clk 0:01:14.9]}
25. Rd1 {[%clk 0:01:41.3]} 25... Qf6 {[%clk 0:01:12.5]} 26. a3 {[%clk
0:01:41.1]} 26... Rfe8 {[%clk 0:01:07.6]} 27. Rf3 {[%clk 0:01:41.4]} 27... Qe7
{[%clk 0:00:57.3]} 28. Rxf7 {[%clk 0:01:40.5]} 28... Qxf7 {[%clk 0:00:59.2]} 29.
Bxf7+ {[%clk 0:01:42.2]} 29... Kxf7 {[%clk 0:01:01.1]} 30. Rxd6 {[%clk
0:01:42.6]} 1-0

[Event "*** Titled Tuesday 3|2 Blitz"]
[Site "Chess.com"]
[Date "2017.06.06"]
[Round "1"]
[White "amurdercastle"]
[Black "Elshan1985"]
[Result "0-1"]
[WhiteElo "2286"]
[BlackElo "2555"]
[TimeControl "180+2"]
[EndTime "13:55:49 PDT"]
[Termination "Elshan1985 won by resignation"]

1. d4 {[%clk 0:03:02]} 1... Nf6 {[%clk 0:03:00.4]} 2. c4 {[%clk 0:03:03.3]} 2...
e6 {[%clk 0:03:02.3]} 3. Nf3 {[%clk 0:03:04]} 3... d5 {[%clk 0:02:55.7]} 4. g3
{[%clk 0:03:03.4]} 4... dxc4 {[%clk 0:02:53.8]} 5. Qa4+ {[%clk 0:03:02.4]} 5...
Nbd7 {[%clk 0:02:53.5]} 6. Bg2 {[%clk 0:03:02.4]} 6... a6 {[%clk 0:02:53.9]} 7.
Qxc4 {[%clk 0:03:03.3]} 7... b5 {[%clk 0:02:54.9]} 8. Qc6 {[%clk 0:03:04.8]}
8... Rb8 {[%clk 0:02:53.8]} 9. Bf4 {[%clk 0:03:05.7]} 9... Bb4+ {[%clk
0:02:52.1]} 10. Nbd2 {[%clk 0:02:42.9]} 10... Bb7 {[%clk 0:02:43.4]} 11. Qxc7
{[%clk 0:02:41.9]} 11... Qxc7 {[%clk 0:02:44.6]} 12. Bxc7 {[%clk 0:02:43.2]}
12... Rc8 {[%clk 0:02:45.5]} 13. Bf4 {[%clk 0:02:42.9]} 13... Rc2 {[%clk
0:02:45.9]} 14. a3 {[%clk 0:02:25.9]} 14... Bxd2+ {[%clk 0:02:46.4]} 15. Bxd2
{[%clk 0:02:26.6]} 15... Rxb2 {[%clk 0:02:47.7]} 16. Rc1 {[%clk 0:02:19.3]}
16... O-O {[%clk 0:02:47.1]} 17. Bb4 {[%clk 0:02:19.2]} 17... Rd8 {[%clk
0:02:41.7]} 18. e3 {[%clk 0:02:15.4]} 18... e5 {[%clk 0:02:24.7]} 19. O-O {[%clk
0:02:07.3]} 19... exd4 {[%clk 0:02:25.6]} 20. Nxd4 {[%clk 0:02:05.2]} 20... Bxg2
{[%clk 0:02:26.6]} 21. Kxg2 {[%clk 0:02:07.1]} 21... Ne5 {[%clk 0:02:26.9]} 22.
Be7 {[%clk 0:02:06.8]} 22... Re8 {[%clk 0:02:23]} 23. Bxf6 {[%clk 0:02:07.1]}
23... gxf6 {[%clk 0:02:24.9]} 24. Nc6 {[%clk 0:01:48.8]} 24... Nc4 {[%clk
0:02:25.2]} 25. Kf3 {[%clk 0:01:46.2]} 25... Nd2+ {[%clk 0:02:24.4]} 26. Kg4
{[%clk 0:01:45.2]} 26... Nxf1 {[%clk 0:02:25.4]} 27. Rxf1 {[%clk 0:01:47.1]}
27... Ra2 {[%clk 0:02:24.5]} 28. h4 {[%clk 0:01:40.1]} 28... Rxa3 {[%clk
0:02:25.6]} 29. h5 {[%clk 0:01:40.7]} 29... Ra4+ {[%clk 0:02:25]} 30. Nd4 {[%clk
0:01:41.4]} 30... Kg7 {[%clk 0:02:24.5]} 31. Rc1 {[%clk 0:01:37]} 31... Re4+
{[%clk 0:02:25.4]} 32. f4 {[%clk 0:01:37.3]} 32... Rexd4 {[%clk 0:02:26]} 33.
exd4 {[%clk 0:01:39.2]} 33... Rxd4 {[%clk 0:02:27]} 34. Rc6 {[%clk 0:01:39.5]}
34... a5 {[%clk 0:02:28.2]} 35. Kf5 {[%clk 0:01:39.6]} 35... Rd5+ {[%clk
0:02:28.1]} 36. Kg4 {[%clk 0:01:40.6]} 36... a4 {[%clk 0:02:25.3]} 37. Ra6
{[%clk 0:01:40.2]} 37... h6 {[%clk 0:02:24.6]} 38. Ra5 {[%clk 0:01:33.3]} 38...
f5+ {[%clk 0:02:23.5]} 39. Kh4 {[%clk 0:01:28.8]} 39... Rd1 {[%clk 0:02:24]} 40.
Kh3 {[%clk 0:01:25.5]} 40... Rb1 {[%clk 0:02:24.8]} 41. g4 {[%clk 0:01:26]}
41... Rb3+ {[%clk 0:02:25.5]} 42. Kh4 {[%clk 0:01:26.6]} 42... fxg4 {[%clk
0:02:23.5]} 43. Kxg4 {[%clk 0:01:28.5]} 43... a3 {[%clk 0:02:24.5]} 44. Kf5
{[%clk 0:01:29]} 44... b4 {[%clk 0:02:24.2]} 45. Ke4 {[%clk 0:01:30.4]} 45...
Rb2 {[%clk 0:02:23.5]} 46. Kd3 {[%clk 0:01:31.7]} 46... a2 {[%clk 0:02:24.6]}
47. f5 {[%clk 0:01:17.1]} 0-1